bitfinex-derivatives/quotes_ETHF0:USTF0_20250918
["timestamp","ask_amount","ask_price","bid_price","bid_amount"]
[1758204552147,0.224,4604.5,4604.2,3.6067]
[1758204552436,3.2078,4605.4,4604.5,0.1236]
[1758204552643,0.1939,4604.7,4604.6,0.6988]
[1758204552842,0.9225,4604.7,4604.6,0.6988]
[1758204553045,0.9225,4604.7,4604.2,3.5077]
[1758204553046,0.3049,4604.6,4604.2,3.5077]
[1758204553237,0.6985,4604.3,4604.2,3.709]
[1758204553544,0.1939,4604.3,4604.2,3.9066]
[1758204553745,0.7228,4604.3,4604.2,3.9066]
[1758204553945,0.9225,4604.3,4604.2,3.9066]
[1758204554240,0.4988,4604.7,4604.6,0.3989]
[1758204554437,0.9225,4604.7,4604.6,0.6988]
[1758204555437,0.9225,4604.7,4604.6,0.2013]
[1758204555639,0.3936,4604.4,4604.3,0.5012]
[1758204555835,0.6985,4604.4,4604.3,0.2013]
[1758204556038,0.3049,4604.3,4604.2,3.2078]
[1758204556344,0.9225,4604.3,4604.2,3.9066]
[1758204556940,0.4179,4604.3,4604.2,3.9066]
[1758204557446,0.224,4604.3,4604.2,3.6067]
[1758204557743,0.9225,4604.3,4604.2,3.6067]
[1758204557945,0.1939,4605.0,4604.9,0.3989]
[1758204558137,0.8231,4605.5,4605.4,0.5012]
[1758204558337,1.43176683,4605.5,4605.4,0.6988]
[1758204558545,0.9225,4605.5,4605.4,0.6988]
[1758204559042,0.3936,4605.9,4605.8,0.2999]
[1758204559246,0.3936,4605.9,4605.0,0.5012]
[1758204559247,0.6985,4605.1,4605.0,0.5012]
[1758204559440,0.9225,4605.1,4605.0,0.6988]
[1758204559836,0.9225,4605.1,4604.3,3.4091]
[1758204559837,0.3936,4604.4,4604.3,3.4091]
[1758204560048,0.7228,4604.4,4604.3,0.6988]
[1758204560245,0.6176,4604.4,4604.2,3.2078]
[1758204560545,3.2078,4604.6,4603.8,2.2676]
[1758204560745,0.4179,4604.3,4604.2,0.5012]
[1758204561047,0.6176,4604.3,4604.2,0.5012]
[1758204561855,0.4179,4604.3,4604.2,0.6988]
[1758204562240,3.2078,4604.6,4604.5,0.8224]
[1758204562550,3.2078,4605.2,4604.6,0.2999]
[1758204562743,0.4179,4605.1,4605.0,0.5012]
[1758204562944,0.6176,4605.1,4605.0,0.5012]
[1758204564043,3.2078,4605.2,4605.0,0.8224]
[1758204564245,3.2078,4605.7,4605.1,0.2999]
[1758204564744,0.918,4605.6,4605.5,0.5012]
[1758204564942,0.694,4605.6,4605.5,0.2999]
[1758204565249,0.918,4605.6,4605.5,0.2999]
[1758204565844,0.6176,4605.6,4605.5,0.5012]
[1758204566345,0.918,4605.6,4605.1,0.2999]
[1758204566540,0.6176,4605.6,4605.0,0.1236]
[1758204566741,0.3936,4605.1,4604.7,0.2999]
[1758204566951,0.3936,4604.8,4604.7,0.2999]
[1758204567153,0.694,4604.8,4604.7,0.2999]
[1758204567353,0.694,4604.8,4604.7,0.5012]
[1758204567551,0.3936,4604.8,4604.7,0.5012]
[1758204568355,0.694,4604.8,4604.7,0.2999]
[1758204568748,0.3936,4604.8,4604.7,0.5012]
[1758204569444,0.4179,4604.8,4604.7,0.6988]
[1758204569644,0.3004,4605.9,4604.8,0.2999]
[1758204569845,38.4098,4606.2,4605.7,0.4975]
[1758204570049,38.4098,4606.2,4606.1,0.2999]
[1758204570250,38.6338,4606.2,4606.1,0.2999]
[1758204571249,38.9342,4606.2,4606.1,0.2999]
[1758204571451,38.9342,4606.2,4605.5,0.1236]
[1758204571452,38.9342,4606.2,4605.6,0.2999]
[1758204571654,38.9342,4606.2,4606.1,0.2999]
[1758204571655,35.202,4606.2,4606.1,0.2999]
[1758204571955,35.7264,4606.2,4606.1,0.2999]
[1758204572450,0.3004,4606.1,4605.5,0.4235]
[1758204572651,0.3004,4606.1,4605.5,0.1236]
[1758204572852,35.202,4606.2,4605.6,0.2999]
[1758204573052,35.202,4606.2,4606.1,0.2999]
[1758204573251,36.56066349,4606.2,4606.1,0.2999]
[1758204573447,36.86106349,4606.2,4606.1,0.2999]
[1758204573652,36.56066349,4606.2,4606.1,0.5012]
[1758204574057,36.86106349,4606.2,4605.6,0.2999]
[1758204574353,0.74166511,4606.1,4605.5,0.1236]
[1758204574651,0.90319044,4606.0,4605.9,0.5012]
[1758204574857,0.694,4605.7,4605.6,0.3216]
[1758204575056,0.918,4605.7,4605.6,0.3216]
[1758204575362,0.918,4605.7,4605.6,0.0217]
[1758204575363,1.6593765,4605.7,4605.6,0.0217]
[1758204576054,1.65938648,4605.7,4605.6,0.0217]
[1758204577454,1.6598222,4605.7,4605.6,0.0217]
[1758204577960,5.6598222,4605.7,4605.6,0.0217]
[1758204578563,5.8769422,4605.7,4604.8,0.5]
[1758204578859,0.7071,4604.9,4604.8,0.5]
[1758204579058,1.6729222,4604.9,4604.8,0.5]
[1758204580158,1.6729222,4604.9,4604.1,0.299]
[1758204580361,0.7071,4604.2,4604.1,0.299]
[1758204580555,1.6729222,4604.2,4604.1,0.299]
[1758204580760,1.6729222,4604.2,4603.6,0.299]
[1758204580959,0.1985,4603.7,4603.6,0.4914]
[1758204581257,0.4225,4603.7,4603.6,0.4914]
[1758204581460,1.1643222,4603.7,4603.6,0.4914]
[1758204581960,0.4062,4603.6,4603.5,0.6082]
[1758204582168,1.1480222,4603.6,4603.5,0.6082]
[1758204582663,1.1480222,4603.6,4603.5,0.299]
[1758204582664,1.4489222,4603.6,4603.5,0.299]
[1758204583163,1.1480222,4603.6,4603.5,0.6082]
[1758204583556,1.6729222,4603.6,4603.5,0.299]
[1758204584063,1.3720222,4603.6,4603.5,0.4914]
[1758204584252,1.3720222,4603.6,4603.5,0.8088]
[1758204584253,0.9658222,4603.6,4603.5,0.8088]
[1758204584453,0.224,4603.6,4603.5,0.5098]
[1758204584755,0.224,4603.6,4603.5,0.8088]
[1758204584960,0.6302,4603.6,4603.5,0.4914]
[1758204585260,1.67326787,4603.6,4603.5,0.299]
[1758204585662,1.37236787,4603.6,4603.5,0.8088]
[1758204586056,1.67326787,4603.6,4603.5,0.4914]
[1758204586260,0.4062,4603.3,4603.2,3.2078]
[1758204586457,0.6302,4603.3,4603.2,3.6008]
[1758204586662,0.4225,4603.3,4603.2,3.6008]
[1758204586857,0.7071,4603.9,4603.8,0.1924]
[1758204587164,1.16437094,4603.9,4603.8,0.692]
[1758204587556,1.37207094,4603.9,4603.8,0.4914]
[1758204587761,0.7071,4603.7,4603.1,0.299]
[1758204587961,0.4062,4603.2,4603.1,0.4914]
[1758204588165,0.6302,4603.2,4603.1,0.692]
[1758204588360,0.224,4603.2,4603.1,0.692]
[1758204588562,3.2078,4604.0,4603.1,0.692]
[1758204588767,1.37175801,4603.9,4603.8,0.692]
[1758204589268,1.67265801,4603.9,4603.8,0.299]
[1758204589467,1.67265801,4603.9,4603.8,0.4914]
[1758204589658,0.94005801,4603.9,4603.8,0.692]
[1758204589859,0.96555801,4603.9,4603.8,0.692]
[1758204590366,1.16405801,4603.9,4603.8,0.692]
[1758204591361,1.37175801,4603.9,4603.8,0.692]
[1758204591558,1.67265801,4603.9,4603.8,0.4914]
[1758204591967,1.67265801,4603.9,4603.8,0.299]
[1758204592170,1.44119844,4603.9,4603.8,0.299]
[1758204592963,1.14029844,4603.9,4603.8,0.692]
[1758204593169,0.6302,4603.9,4603.8,0.692]
[1758204593467,0.9311,4603.9,4603.8,0.4914]
[1758204593661,0.9311,4603.9,4603.5,0.1168]
[1758204593866,0.4062,4603.7,4603.6,0.4914]
[1758204594169,0.6302,4603.7,4603.6,0.692]
[1758204595469,0.9311,4603.7,4603.6,0.4914]
[1758204595669,0.9311,4603.7,4603.6,0.299]
[1758204596162,0.4062,4603.4,4603.3,0.299]
[1758204596361,0.9311,4603.4,4603.3,0.299]
[1758204597869,0.9311,4603.4,4603.3,0.4914]
[1758204598370,0.6302,4603.4,4603.3,0.6893]
[1758204598566,3.2078,4604.0,4603.5,0.1231]
[1758204598759,0.6167,4603.9,4603.8,0.5101]
[1758204598964,0.9177,4603.9,4603.8,0.5101]
[1758204599373,0.6937,4603.6,4603.5,0.3121]
[1758204599565,0.3927,4603.2,4603.1,0.2197]
[1758204599765,0.6167,4603.2,4603.1,0.2197]
[1758204600161,0.6167,4603.2,4603.1,0.7297]
[1758204600367,3.6005,4604.0,4603.9,0.5101]
[1758204600568,3.8245,4604.0,4603.9,0.708]
[1758204600771,3.625,4604.0,4603.9,0.708]
[1758204601071,38.3968,4604.5,4603.9,0.708]
[1758204601264,38.3968,4604.5,4604.3,0.3959]
[1758204601468,35.189,4604.5,4604.4,0.708]
[1758204601663,35.3822,4604.5,4604.4,0.708]
[1758204601971,35.6062,4604.5,4604.4,0.708]
[1758204602270,35.413,4604.5,4604.4,0.708]
[1758204602971,35.6062,4604.5,4604.4,0.708]
[1758204603569,35.413,4604.5,4604.4,0.708]
[1758204604372,38.7985,4605.7,4605.6,0.198]
[1758204604566,39.84100468,4605.7,4605.6,0.5101]
[1758204604766,40.0649957,4605.7,4605.1,0.3121]
[1758204605067,0.1932,4605.2,4605.1,0.708]
[1758204605262,38.4058,4605.7,4605.2,0.3121]
[1758204605473,35.3934,4605.7,4605.6,0.6992]
[1758204605770,35.422,4605.7,4605.6,0.6992]
[1758204605965,35.6174,4605.7,4605.6,0.6992]
[1758204606167,36.85579574,4605.7,4605.1,0.3004]
[1758204606368,36.85579574,4605.7,4605.1,0.4959]
[1758204606369,0.4033,4605.2,4605.1,0.4959]
[1758204606570,0.6273,4605.2,4605.1,0.6992]
[1758204606769,0.224,4605.2,4605.1,0.6992]
[1758204606969,35.198,4605.7,4605.6,0.6992]
[1758204607167,35.422,4605.7,4605.6,0.6992]
[1758204607364,35.8253,4605.7,4605.6,0.6992]
[1758204607563,36.1143,4605.7,4605.1,0.3004]
[1758204610970,36.1143,4605.7,4605.6,0.1955]
[1758204611175,36.1143,4605.7,4605.6,0.4959]
[1758204611577,36.1143,4605.7,4605.6,0.3004]
[1758204611878,36.1143,4605.7,4605.1,0.3004]
[1758204613271,35.3934,4605.7,4605.6,0.6992]
[1758204613466,36.1143,4605.7,4605.6,0.4959]
[1758204613878,36.1143,4605.7,4605.1,0.3004]
[1758204617073,36.1143,4605.7,4604.9,3.2078]
[1758204617274,0.1954,4604.8,4604.7,0.4959]
[1758204617474,0.6273,4604.8,4604.7,0.4959]
[1758204618579,0.9163,4604.8,4604.7,0.4959]
[1758204619177,0.4033,4604.5,4604.3,5.0765]
[1758204619378,0.9163,4604.4,4604.3,5.3769]
[1758204619578,0.9163,4604.4,4604.3,5.5724]
[1758204619780,0.6273,4604.4,4604.3,5.7757]
[1758204619977,0.6273,4604.4,4604.3,3.907]
[1758204621078,0.1954,4604.4,4604.3,3.907]
[1758204621286,0.1954,4604.9,4604.8,0.6992]
[1758204621582,0.4033,4604.9,4604.8,0.6992]
[1758204621779,0.6273,4604.9,4604.8,0.6992]
[1758204621983,0.9163,4604.9,4604.8,0.3004]
[1758204622380,0.1954,4604.9,4604.8,0.6992]
[1758204622580,3.9001,4605.6,4605.1,0.3004]
[1758204622788,0.4033,4605.1,4605.0,0.8142]
[1758204623285,0.6273,4605.1,4605.0,0.8142]
[1758204623687,0.1954,4605.1,4605.0,0.8142]
[1758204623878,0.224,4605.1,4605.0,0.4154]
[1758204624081,0.6273,4605.1,4605.0,0.6109]
[1758204624287,0.6273,4605.1,4605.0,0.8142]
[1758204626179,0.4033,4605.5,4605.4,0.1955]
[1758204626382,1.36870857,4605.5,4605.4,0.6992]
[1758204626582,1.13697087,4605.5,4605.4,0.6992]
[1758204627290,1.36885915,4605.5,4605.4,0.6992]
[1758204627493,0.4033,4605.1,4605.0,0.3004]
[1758204627688,0.1954,4604.9,4604.8,3.2078]
[1758204627989,0.1954,4604.9,4604.5,0.115]
[1758204627990,0.289,4604.6,4604.5,0.0217]
[1758204628180,0.9163,4604.6,4604.5,0.0217]
[1758204628588,5.87577183,4604.6,4604.0,1.8687]
[1758204628892,0.6923,4604.1,4604.0,1.8687]
[1758204629183,1.65859183,4604.1,4603.5,0.115]
[1758204629398,0.6923,4603.6,4603.5,0.4154]
[1758204629598,0.9163,4603.6,4603.5,0.4154]
[1758204630095,0.289,4603.5,4603.2,0.3004]
[1758204630400,0.4033,4603.3,4603.2,0.4959]
[1758204631200,0.4033,4603.3,4603.2,0.6992]
[1758204631794,0.6923,4603.3,4603.2,0.4959]
[1758204632902,0.4033,4603.3,4603.2,0.6992]
[1758204633696,35.191,4604.0,4603.2,0.6992]
[1758204633899,1.16000441,4603.9,4603.8,0.6992]
[1758204634097,1.14390441,4603.9,4603.8,0.6992]
[1758204634308,1.13690118,4603.9,4603.8,0.6992]
[1758204634801,0.6273,4603.9,4603.8,0.6992]
[1758204635299,35.5973,4604.7,4604.6,0.6992]
[1758204635499,0.70398111,4604.7,4604.6,0.6992]
[1758204635802,0.3009,4606.2,4604.7,0.2876]
[1758204636106,1.14868015,4606.1,4606.0,0.4104]
[1758204636498,0.9246398,4606.1,4606.0,0.611]
[1758204636698,1.1486398,4606.1,4606.0,0.611]
[1758204637207,1.4495398,4606.1,4606.0,0.2876]
[1758204637598,1.37941524,4606.1,4606.0,0.611]
[1758204637804,1.37941524,4606.1,4606.0,0.8228]
[1758204638504,1.15541524,4606.1,4606.0,0.8228]
[1758204638707,1.37941524,4606.1,4606.0,0.8228]
[1758204638904,1.68031524,4606.1,4606.0,0.8228]
[1758204639306,1.37941524,4606.1,4605.8,3.4954]
[1758204639607,0.4163,4605.9,4605.8,3.696]
[1758204639910,0.2102,4605.9,4605.8,0.7]
[1758204640205,0.4342,4605.9,4605.8,0.7]
[1758204640507,0.4163,4605.9,4605.8,0.7]
[1758204640702,0.6403,4605.9,4605.5,3.3306]
[1758204641006,0.4163,4605.6,4605.5,3.5312]
[1758204641208,0.6403,4605.6,4605.5,3.5312]
[1758204641410,0.9412,4605.6,4605.0,3.3306]
[1758204641608,0.9412,4605.6,4605.0,3.6182]
[1758204641908,0.7172,4605.1,4605.0,0.2876]
[1758204642110,0.3632,4605.0,4604.5,3.2078]
[1758204642312,0.7172,4604.6,4604.5,3.2078]
[1758204642512,0.9412,4604.6,4604.5,3.2078]
[1758204642713,0.6403,4604.6,4604.0,0.4104]
[1758204642901,0.7172,4604.3,4604.1,0.2876]
[1758204643102,0.6403,4604.2,4604.1,0.4882]
[1758204643305,0.6403,4604.2,4604.0,0.1228]
[1758204643306,3.418,4604.7,4604.6,0.7]
[1758204643502,4.58632736,4604.7,4604.6,0.7]
[1758204644908,4.88722736,4604.7,4604.6,0.4882]
[1758204645111,4.88722736,4604.7,4604.1,0.2876]
[1758204645305,0.2102,4604.2,4604.1,0.7]
[1758204645506,0.4332,4604.2,4604.1,0.7]
[1758204648812,3.2078,4604.7,4604.1,0.4124]
[1758204649008,0.71870507,4604.6,4604.5,0.8228]
[1758204649213,0.223,4604.6,4604.5,0.8228]
[1758204649414,0.7172,4605.2,4605.1,0.2006]
[1758204649715,1.67949487,4605.2,4605.1,0.4882]
[1758204649916,1.37859487,4605.2,4605.1,0.4882]
[1758204650216,1.67949487,4605.2,4605.1,0.4882]
[1758204650515,1.67948987,4605.2,4605.1,0.4882]
[1758204650711,0.73928987,4605.2,4605.1,0.7]
[1758204650916,0.96228987,4605.2,4605.1,0.7]
[1758204651312,0.223,4605.2,4605.1,3.9078]
[1758204652415,0.6393,4605.2,4605.1,3.9078]
[1758204653215,0.6393,4605.2,4605.1,0.7]
[1758204653619,0.6393,4605.2,4604.5,0.1228]
[1758204653620,0.9402,4605.2,4604.6,0.2876]
[1758204654014,0.3009,4604.6,4604.4,3.2078]
[1758204654214,0.9402,4604.5,4604.4,3.4084]
[1758204654416,0.9402,4604.5,4604.1,1.8687]
[1758204654621,0.7172,4604.2,4604.1,1.8687]
[1758204654821,1.45653031,4604.2,4604.1,1.8687]
[1758204655129,1.45653031,4604.2,4603.6,0.2876]
[1758204655322,0.2102,4603.7,4603.6,0.7]
[1758204655622,0.4332,4603.7,4603.6,0.7]
[1758204655812,0.2102,4603.7,4603.6,0.7]
[1758204656017,0.3009,4604.7,4604.3,0.2876]
[1758204656319,0.2102,4604.4,4604.3,0.7]
[1758204656713,0.4163,4604.2,4604.1,0.2876]
[1758204656926,0.4163,4604.2,4603.5,3.3306]
[1758204656927,0.4163,4603.7,4603.6,0.4882]
[1758204657126,0.6393,4603.7,4603.6,0.4882]
[1758204658320,0.6393,4603.7,4603.6,0.6857]
[1758204659119,3.2078,4604.2,4603.7,0.3]
[1758204659320,0.4323,4604.1,4604.0,0.8316]
[1758204659722,0.9332,4604.1,4603.5,0.1228]
[1758204659919,0.9332,4604.1,4603.5,0.4228]
[1758204660320,0.9332,4604.1,4604.0,0.8316]
[1758204660321,0.4092,4604.1,4604.0,0.8316]
[1758204660516,1.14068389,4604.1,4604.0,0.8316]
[1758204660720,0.94078389,4604.1,4604.0,0.8316]
[1758204662131,35.195,4605.0,4604.0,0.5316]
[1758204662326,0.73893541,4604.9,4604.8,3.9124]
[1758204662527,0.223,4604.9,4604.8,3.9124]
[1758204663822,35.195,4605.0,4604.8,3.6124]
[1758204664328,35.195,4605.0,4604.9,0.7046]
[1758204664527,35.418,4605.0,4604.9,0.7046]
[1758204664721,0.323,4606.3,4605.1,0.3]
[1758204664928,0.2313,4606.3,4606.2,0.7046]
[1758204665228,1.39412496,4606.3,4606.2,0.7046]
[1758204665823,1.16362678,4606.3,4606.2,0.7046]
[1758204666022,1.68697905,4606.3,4606.2,0.3]
[1758204666527,0.2083,4605.9,4605.8,3.7133]
[1758204666726,0.4313,4605.9,4605.8,3.7133]
[1758204667129,0.4313,4605.9,4605.8,3.9194]
[1758204668225,0.223,4605.9,4605.8,3.9194]
[1758204670731,0.4313,4605.9,4605.8,0.7116]
[1758204670932,1.15007305,4605.9,4605.8,0.7116]
[1758204671129,1.44295677,4605.9,4605.8,0.5055]
[1758204671329,1.44295677,4605.9,4605.8,0.3065]
[1758204671634,1.67345405,4605.9,4605.8,0.3065]
[1758204671833,0.50935677,4605.9,4605.8,0.7116]
[1758204672139,0.022,4606.3,4606.0,0.1213]
[1758204672329,0.73228696,4606.2,4606.1,0.7116]
[1758204672729,0.94058696,4606.2,4606.1,0.7116]
[1758204673836,1.38040415,4606.2,4606.1,0.7116]
[1758204674129,0.2929,4606.1,4605.7,3.2078]
[1758204674324,0.4177,4605.8,4605.7,3.4068]
[1758204674523,0.6407,4605.8,4605.7,3.6129]
[1758204674726,0.6407,4605.8,4605.7,3.9194]
[1758204674925,0.4313,4605.8,4605.7,3.9194]
[1758204675336,0.223,4605.8,4605.7,3.9194]
[1758204675733,0.022,4606.3,4606.0,0.1213]
[1758204676037,1.67309768,4606.2,4606.1,0.3065]
[1758204676432,1.67309768,4606.2,4606.1,0.5055]
[1758204676832,1.38019768,4606.2,4605.7,0.3065]
[1758204677033,0.2083,4605.6,4605.5,0.8386]
[1758204677233,0.4313,4605.6,4605.5,0.8386]
[1758204677534,0.223,4605.6,4605.5,0.8386]
[1758204678036,0.2929,4606.1,4605.5,0.8386]
[1758204678241,0.94046218,4606.0,4605.9,0.7116]
[1758204678635,1.44276218,4606.0,4605.9,0.7116]
[1758204678936,1.3802437,4606.0,4605.6,0.3065]
[1758204679139,0.7106,4605.7,4605.6,0.5055]
[1758204679441,0.223,4606.0,4605.7,0.3065]
[1758204679743,0.2083,4606.0,4605.9,0.7116]
[1758204680041,0.4313,4606.0,4605.9,0.7116]
[1758204680236,0.022,4606.3,4605.9,0.4051]
[1758204680441,0.022,4606.3,4606.2,3.9194]
[1758204680745,0.245,4606.3,4606.2,3.9194]
[1758204680942,0.022,4606.3,4606.2,3.9194]
[1758204681143,0.245,4606.3,4606.2,3.9194]
[1758204682743,0.4533,4606.3,4606.2,3.9194]
[1758204683045,0.4533,4606.3,4606.2,0.7116]
[1758204683643,0.6627,4606.3,4606.2,0.7116]
[1758204684345,0.2929,4606.2,4605.8,0.3065]
[1758204684638,0.4177,4605.9,4605.8,0.2207]
[1758204684845,0.87096869,4605.9,4605.8,0.0217]
[1758204685035,1.37986699,4605.9,4605.8,0.0217]
[1758204685236,1.67276699,4605.9,4605.8,0.0217]
[1758204686246,5.88988699,4605.9,4604.9,0.3065]
[1758204686441,5.88988699,4605.9,4605.0,0.4335]
[1758204686442,0.7106,4605.1,4605.0,0.4335]
[1758204686648,1.67276699,4605.1,4605.0,0.4335]
[1758204687352,0.7318983,4605.1,4605.0,0.8386]
[1758204687546,0.5088983,4605.1,4605.0,0.8386]
[1758204687746,3.2078,4605.8,4605.7,0.7116]
[1758204687947,4.37896779,4605.8,4605.7,0.7116]
[1758204688548,1.17127482,4605.8,4605.7,0.7116]
[1758204689445,0.94827482,4605.8,4605.7,0.7116]
[1758204689754,1.17127482,4605.8,4605.7,0.7116]
[1758204690457,1.38067482,4605.8,4605.7,0.7116]
[1758204690657,1.67357482,4605.8,4605.7,0.5055]
[1758204691157,1.67357482,4605.8,4605.7,0.3065]
[1758204691360,0.7106,4605.6,4605.5,0.3065]
[1758204691659,1.45057482,4605.6,4605.5,0.3065]
[1758204692157,1.67357482,4605.6,4605.5,0.5055]
[1758204692550,1.67357482,4605.6,4605.5,0.3065]
[1758204692855,1.67357482,4605.6,4605.0,0.127]
[1758204693057,0.2083,4605.2,4605.1,0.7116]
[1758204693251,0.4313,4605.2,4605.1,0.7116]
[1758204693454,1.67357482,4605.2,4605.1,0.5055]
[1758204693654,0.7106,4604.9,4604.8,0.3065]
[1758204693959,1.67357482,4604.9,4604.8,0.5055]
[1758204694752,1.67357482,4604.9,4603.5,0.1213]
[1758204694753,0.4177,4604.7,4604.6,0.5055]
[1758204694962,1.45057482,4604.7,4604.6,0.5055]
[1758204695258,1.45057482,4604.7,4604.1,0.3065]
[1758204695560,0.96297482,4604.6,4604.1,0.7166]
[1758204695748,0.73997482,4604.5,4604.2,0.2893]
[1758204695954,35.186,4604.9,4604.8,0.6994]
[1758204696260,36.14830728,4604.9,4604.8,0.6994]
[1758204696557,36.34330728,4604.9,4604.8,0.6994]
[1758204696754,36.14830728,4604.9,4604.8,0.6994]
[1758204697360,36.34330728,4604.9,4604.8,0.6994]
[1758204698056,35.92530728,4604.9,4604.8,0.6994]
[1758204698456,35.409,4604.9,4604.8,4.6994]
[1758204699359,35.409,4604.9,4604.8,0.6994]
[1758204699551,35.409,4604.9,4604.8,4.6994]
[1758204699758,0.223,4604.9,4604.8,0.6994]
[1758204700154,35.4899,4606.0,4604.8,0.6994]
[1758204700361,35.4899,4606.0,4604.5,0.1208]
[1758204700362,0.96191502,4605.9,4605.2,0.2893]
[1758204700661,1.14531502,4605.8,4605.7,0.2112]
[1758204700864,1.36831502,4605.8,4605.7,0.5005]
[1758204701257,1.66921502,4605.8,4605.7,0.5005]
[1758204701563,1.14531502,4605.8,4605.7,0.6994]
[1758204701764,1.15691502,4605.8,4605.7,0.6994]
[1758204701960,1.36831502,4605.8,4605.7,0.6994]
[1758204704271,1.36834325,4605.8,4605.7,0.6994]
[1758204704661,1.66924325,4605.8,4605.7,0.6994]
[1758204705168,1.14534325,4605.8,4605.7,0.6994]
[1758204705467,1.66924325,4605.8,4605.7,0.5005]
[1758204706060,1.66924325,4605.8,4605.5,0.1208]
[1758204706265,1.44624325,4605.7,4605.6,0.2893]
[1758204707060,1.44624325,4605.7,4605.6,0.5005]
[1758204709168,1.14534325,4605.7,4605.6,0.6994]
[1758204709466,1.44627701,4605.7,4605.6,0.2893]
[1758204711169,1.44627701,4605.7,4605.6,0.5005]
[1758204712873,1.44627701,4605.7,4605.1,3.2078]
[1758204713062,0.223,4605.8,4605.2,0.6994]
[1758204713063,0.4064,4605.3,4605.2,0.6994]
[1758204713371,1.36837701,4605.3,4605.2,0.6994]
[1758204715168,0.195,4605.1,4604.5,3.3286]
[1758204715371,0.4064,4604.7,4604.6,0.5005]
[1758204715577,0.6294,4604.7,4604.6,0.5005]
[1758204715779,1.14042476,4604.7,4604.6,0.6994]
[1758204716070,0.73402476,4604.7,4604.6,0.6994]
[1758204716773,0.92902476,4604.7,4604.6,0.6994]
[1758204717076,1.12192476,4604.7,4604.6,0.6994]
[1758204717478,1.41049795,4604.7,4604.6,0.5005]
[1758204717677,1.63962044,4604.7,4604.6,0.5005]
[1758204718575,1.63962044,4604.7,4604.6,0.2893]
[1758204718774,0.1929,4604.3,4604.1,2.3656]
[1758204719079,1.64176102,4604.2,4604.0,0.0217]
[1758204719276,1.41876102,4604.1,4604.0,0.0217]
[1758204719478,1.41876102,4604.1,4604.0,0.3246]
[1758204719671,1.41876102,4604.1,4604.0,0.5186]
[1758204719871,1.41876102,4604.1,4604.0,0.0217]
[1758204720071,0.6785,4604.0,4603.9,3.5107]
[1758204720275,0.76253426,4604.0,4603.9,3.9017]
[1758204720581,0.98553426,4604.0,4603.9,3.9017]
[1758204720774,0.76253426,4604.0,4603.9,3.9017]
[1758204720979,0.47440162,4604.0,4603.9,7.9017]
[1758204721279,0.223,4604.0,4603.9,7.9017]
[1758204723674,35.189,4604.3,4603.9,7.5988]
[1758204723879,0.47426517,4604.2,4604.1,0.6939]
[1758204724281,0.25126517,4604.2,4604.1,0.6939]
[1758204724583,35.189,4604.3,4604.2,0.6939]
[1758204724780,35.412,4604.3,4604.2,0.6939]
[1758204724983,35.189,4604.3,4604.2,0.6939]
[1758204725283,35.412,4604.3,4604.2,0.6939]
[1758204726780,35.6167,4604.3,4604.2,0.6939]
[1758204727183,35.412,4604.3,4604.2,4.6939]
[1758204727380,35.3075,4606.0,4605.3,0.1988]
[1758204727685,0.2047,4605.4,4605.3,3.9086]
[1758204727878,0.67894009,4605.4,4605.3,3.9086]
[1758204728081,1.17416405,4605.4,4605.3,3.9086]
[1758204728273,1.39716405,4605.4,4605.3,3.9086]
[1758204728473,0.97566405,4605.4,4605.3,3.9086]
[1758204728674,1.19866405,4605.4,4605.3,3.9086]
[1758204730387,0.97566405,4605.4,4605.3,3.9086]
[1758204730586,0.77096405,4605.4,4605.3,3.9086]
[1758204730886,0.3229,4606.3,4605.3,3.613]
[1758204731087,1.69787603,4606.2,4606.1,0.4944]
[1758204731680,1.69787603,4606.2,4606.1,0.2956]
[1758204731991,0.3009,4606.0,4605.5,0.1215]
[1758204732188,0.7041,4605.7,4605.6,0.4944]
[1758204732382,0.4032,4605.2,4605.1,0.2956]
[1758204732582,1.69782417,4605.2,4605.1,0.2956]
[1758204733590,1.69782417,4605.2,4605.1,0.4944]
[1758204733785,1.39692417,4605.2,4604.9,3.5034]
[1758204734088,0.7041,4605.0,4604.9,3.5034]
[1758204734281,0.95528809,4605.0,4604.9,3.7022]
[1758204734889,1.47486897,4605.0,4604.9,3.7022]
[1758204735086,1.47486897,4605.0,4604.3,3.2078]
[1758204735283,0.4032,4604.4,4604.3,3.4066]
[1758204735484,0.87738809,4604.4,4604.3,3.613]
[1758204735886,0.87738809,4604.4,4604.3,3.9086]
[1758204735887,0.65438809,4604.4,4604.3,3.9086]
[1758204736087,0.87738809,4604.4,4604.3,3.9086]
[1758204736496,0.3009,4604.3,4603.7,3.5034]
[1758204736793,0.4032,4603.8,4603.7,3.9086]
[1758204736984,1.39705404,4603.8,4603.7,3.9086]
[1758204738386,0.87738809,4603.8,4603.7,3.9086]
[1758204738592,1.39681118,4603.8,4603.7,3.9086]
[1758204739098,0.87738809,4603.8,4603.7,3.9086]
[1758204739401,0.47418809,4603.8,4603.7,3.9086]
[1758204739696,0.25118809,4603.8,4603.7,3.9086]
[1758204739993,0.47418809,4603.8,4603.7,3.9086]
[1758204740385,0.25118809,4603.8,4603.7,3.9086]
[1758204740588,3.2078,4604.5,4603.8,0.2956]
[1758204740788,1.39639903,4604.4,4604.3,0.4944]
[1758204741092,1.39639903,4604.4,4604.3,0.7008]
[1758204741688,1.39639903,4604.4,4604.3,0.4944]
[1758204741888,1.39639903,4604.4,4604.3,0.7008]
[1758204742285,1.69729903,4604.4,4604.3,0.2956]